fUSD/lending_fUSD_20250602
["ID","MTS","AMOUNT","RATE_DAILY","PERIOD"]
[363724480,1748845844555,-420.0,0.00019726,2]
[363724481,1748845844564,-560.38,0.00019726,2]
[363724482,1748845844573,-420.0,0.00019726,2]
[363724483,1748845844583,-2332.3,0.00019726,2]
[363724484,1748845844593,-420.0,0.00019726,2]
[363724485,1748845844603,-831.64,0.00019726,2]
[363724486,1748845844612,-420.0,0.00019726,2]
[363724487,1748845844623,-420.0,0.00019726,2]
[363724488,1748845844633,-944.52,0.00019726,2]
[363724489,1748845844643,-420.0,0.00019726,2]
[363724490,1748845844652,-514.52,0.00019726,2]
[363724491,1748845844664,-4335.42,0.00019726,2]
[363724492,1748845844674,-420.0,0.00019726,2]
[363724493,1748845844685,-420.0,0.00019726,2]
[363724494,1748845844695,-420.0,0.00019726,2]
[363724495,1748845844704,-841.33,0.00019726,2]
[363724496,1748845844713,-420.0,0.00019726,2]
[363724497,1748845844722,-420.0,0.00019726,2]
[363724498,1748845844732,-468.89,0.00019726,2]
[363724499,1748845844742,-210.85098158,0.00019726,2]
[363724500,1748845844752,-420.0,0.00019726,2]
[363724501,1748845844761,-420.0,0.00019726,2]
[363724502,1748845844771,-420.0,0.00019726,2]
[363724503,1748845844780,-420.0,0.00019726,2]
[363724504,1748845844789,-1231.87,0.00019726,2]
[363724505,1748845844799,-420.0,0.00019726,2]
[363724506,1748845844809,-156.587,0.00019726,2]
[363724507,1748845844819,-154.89613363,0.00019761,2]
[363724508,1748845844828,-156.7871604,0.00019763,2]
[363724509,1748845844837,-908.18,0.00019819,2]
[363724510,1748845844847,-1035.54653,0.0001983,2]
[363724511,1748845844857,-200.0,0.0001984,2]
[363724512,1748845844867,-50261.27485714,0.00019856,2]
[363724513,1748845844876,-424.78,0.00019863,2]
[363724514,1748845844886,-186.71679231,0.00019863,2]
[363724515,1748845844897,-771.4,0.00019863,2]
[363724516,1748845844907,-497.68,0.00019863,2]
[363724517,1748845844917,-420.0,0.00019863,2]
[363724518,1748845844927,-420.0,0.00019863,2]
[363724519,1748845844936,-420.0,0.00019863,2]
[363724520,1748845844947,-420.0,0.00019863,2]
[363724521,1748845844957,-3849.85,0.00019863,2]
[363724522,1748845844967,-888.39,0.00019863,2]
[363724523,1748845844977,-962.99,0.00019863,2]
[363724524,1748845844987,-420.0,0.00019863,2]
[363724525,1748845844996,-550.56,0.00019863,2]
[363724526,1748845845006,-766.58,0.00019863,2]
[363724527,1748845845016,-627.87,0.00019863,2]
[363724528,1748845845026,-607.38,0.00019863,2]
[363724529,1748845845035,-420.0,0.00019863,2]
[363724530,1748845845045,-420.0,0.00019863,2]
[363724531,1748845845054,-420.0,0.00019863,2]
[363724532,1748845845064,-739.37,0.00019863,2]
[363724533,1748845845073,-420.0,0.00019863,2]
[363724534,1748845845084,-1442.63,0.00019863,2]
[363724535,1748845845094,-420.0,0.00019863,2]
[363724536,1748845845104,-392.16349111,0.00019863,2]
[363724537,1748845845113,-420.0,0.00019863,2]
[363724538,1748845845123,-420.0,0.00019863,2]
[363724539,1748845845132,-473.88,0.00019863,2]
[363724540,1748845845143,-420.0,0.00019863,2]
[363724541,1748845845152,-652.48,0.00019863,2]
[363724542,1748845845162,-420.0,0.00019863,2]
[363724543,1748845845174,-420.0,0.00019863,2]
[363724544,1748845845183,-420.0,0.00019863,2]
[363724545,1748845845193,-420.0,0.00019863,2]
[363724546,1748845845202,-560.38,0.00019863,2]
[363724547,1748845845211,-420.0,0.00019863,2]
[363724548,1748845845220,-2332.3,0.00019863,2]
[363724549,1748845845230,-525.55603294,0.00019863,2]
[363724550,1748845845239,-831.64,0.00019863,2]
[363724551,1748845845249,-420.0,0.00019863,2]
[363724552,1748845845258,-382.17,0.00019863,2]
[363724553,1748845845268,-944.52,0.00019863,2]
[363724554,1748845845278,-420.0,0.00019863,2]
[363724555,1748845845287,-514.52,0.00019863,2]
[363724556,1748845845297,-4335.42,0.00019863,2]
[363724557,1748845845307,-420.0,0.00019863,2]
[363724558,1748845845315,-420.0,0.00019863,2]
[363724559,1748845845325,-420.0,0.00019863,2]
[363724560,1748845845334,-841.33,0.00019863,2]
[363724561,1748845845344,-420.0,0.00019863,2]
[363724562,1748845845355,-420.0,0.00019863,2]
[363724563,1748845845364,-468.89,0.00019863,2]
[363724564,1748845845373,-420.0,0.00019863,2]
[363724565,1748845845383,-430.25265402,0.00019863,2]
[363724566,1748845845395,-420.0,0.00019863,2]
[363724567,1748845845404,-420.0,0.00019863,2]
[363724568,1748845845414,-1231.87,0.00019863,2]
[363724569,1748845845423,-420.0,0.00019863,2]
[363724570,1748845845433,-2000.0,0.000199,2]
[363724571,1748845845443,-2000.0,0.000199,2]
[363724572,1748845845453,-5000.0,0.000199,2]
[363724573,1748845845462,-794.42994862,0.000199,2]
[363724574,1748845845472,-189.68,0.000199,2]
[363724575,1748845845484,-1000.0,0.000199,2]
[363724576,1748845845493,-712.48051728,0.000199,2]
[363724577,1748845845502,-931.35729202,0.000199,2]
[363724578,1748845845512,-5964.00619255,0.000199,2]
[363724579,1748845845522,-925.0,0.00019959,2]
[363724580,1748845845532,-588.0,0.00019959,2]
[363724581,1748845845542,-1271.0,0.00019959,2]
[363724582,1748845845551,-557.0,0.00019959,2]
[363724583,1748845845560,-1157.0,0.00019959,2]
[363724584,1748845845570,-943.0,0.00019959,2]
[363724585,1748845845580,-175.864,0.00019959,2]
[363724586,1748845845589,-4075.0,0.00019959,2]
[363724587,1748845845598,-7010.0,0.00019959,2]
[363724588,1748845845607,-500.0,0.00019973,2]
[363724589,1748845845616,-500.0,0.00019973,2]
[363724590,1748845845626,-500.0,0.00019973,2]
[363724591,1748845845635,-500.0,0.00019973,2]
[363724592,1748845845646,-164.15099253,0.00019973,2]
[363724593,1748845845656,-500.0,0.00019973,2]
[363724594,1748845845666,-500.0,0.00019973,2]
[363724595,1748845845676,-500.0,0.00019973,2]
[363724596,1748845845685,-808.64571064,0.00019993,2]
[363724597,1748845845695,-5202.25353042,0.00019995,2]
[363724598,1748845845705,-300.0,0.00019999,2]
[363724599,1748845845714,-300.0,0.00019999,2]
[363724600,1748845845724,-300.0,0.00019999,2]
[363724601,1748845845733,-493.18,0.00019999,2]
[363724602,1748845845743,-500.0,0.00019999,2]
[363724603,1748845845752,-566.33843341,0.00019999,2]
[363724604,1748845845762,-2484.29319001,0.00019999,2]
[363724605,1748845845771,-697.0,0.0002,2]
[363724606,1748845845781,-192.3237528,0.0002,2]
[363724607,1748845845791,-95499.41834678,0.0002,2]
[363724608,1748845845808,-587.64414413,0.0002,2]
[363724609,1748845845824,-2520.91551051,0.0002,2]
[363724614,1748845846078,-633.2,0.0002,2]
[363724616,1748845846558,-6215.10868026,0.00019589,2]
[363724617,1748845846569,-9028.84700392,0.0002,2]
[363724618,1748845846581,-2896.3297121,0.0002,2]
[363724632,1748845973824,429.093466,0.00018959,2]
[363724633,1748846022074,293.58,0.00016946,2]
[363724641,1748846280171,3070.37923282,0.00019001,2]
[363724642,1748846306712,1000.0,0.00018828,2]
[363724644,1748846334423,171.83,0.00018825,2]
[363724645,1748846399110,2565.83994534,0.00023,30]
[363724646,1748846748347,2256.0,0.00019001,2]
[363724647,1748846782951,2000.8,0.00019001,2]
[363724649,1748846870836,292.84,0.00013699,2]
[363724651,1748846997610,278.9,0.00016853,2]
[363724652,1748847029655,250.0,0.00018794,2]
[363724655,1748847031500,-199.24279474,0.00019077,2]
[363724656,1748847031511,-250.0,0.00019081,2]
[363724657,1748847031523,-278.9,0.00019117,2]
[363724658,1748847031532,-311.66090786,0.00019177,2]
[363724659,1748847031542,-565.13160307,0.00019177,2]
[363724660,1748847031554,-634.86839693,0.00019177,2]
[363724661,1748847031563,-413.94114856,0.00019178,2]
[363724662,1748847031579,-6.05885144,0.00019178,2]
[363724663,1748847031589,-420.0,0.00019178,2]
[363724664,1748847031600,-420.0,0.00019178,2]
[363724665,1748847031610,-420.0,0.00019178,2]
[363724666,1748847031619,-2887.38,0.00019178,2]
[363724667,1748847031630,-455.53,0.00019178,2]
[363724668,1748847031640,-193.95,0.00019178,2]
[363724669,1748847031649,-470.9,0.00019178,2]
[363724670,1748847031659,-420.0,0.00019178,2]
[363724671,1748847031668,-420.0,0.00019178,2]
[363724672,1748847031677,-420.0,0.00019178,2]
[363724673,1748847031687,-170.79489799,0.00019178,2]
[363724674,1748847031696,-7.46443229,0.00019178,2]
[363724676,1748847031808,-481.89556771,0.00019178,2]
[363724677,1748847031818,-420.0,0.00019178,2]
[363724678,1748847031828,-1081.97,0.00019178,2]
[363724679,1748847031838,-574.94,0.00019178,2]
[363724680,1748847031847,-554.53,0.00019178,2]
[363724681,1748847031856,-1749.22,0.00019178,2]
[363724682,1748847031865,-420.0,0.00019178,2]
[363724683,1748847031875,-420.0,0.00019178,2]
[363724684,1748847031885,-60.50173408,0.00019178,2]
[363724695,1748847037399,-359.78826592,0.00019178,2]
[363724696,1748847037410,-420.0,0.00019178,2]
[363724697,1748847037421,-420.0,0.00019178,2]
[363724698,1748847037430,-420.0,0.00019178,2]
[363724699,1748847037439,-420.0,0.00019178,2]
[363724700,1748847037449,-420.0,0.00019178,2]
[363724701,1748847037459,-420.0,0.00019178,2]
[363724702,1748847037468,-3251.57,0.00019178,2]
[363724703,1748847037478,-420.0,0.00019178,2]
[363724704,1748847037487,-420.0,0.00019178,2]
[363724705,1748847037497,-333.16283879,0.00019178,2]
[363724706,1748847037506,-1456.62,0.00019178,2]
[363724707,1748847037515,-414.65762916,0.00019178,2]
[363724708,1748847037529,-5.34237084,0.00019178,2]
[363724709,1748847037538,-376.24988459,0.00019178,2]
[363724710,1748847038762,-43.75011541,0.00019178,2]
[363724711,1748847038772,-420.0,0.00019178,2]
[363724712,1748847038782,-420.0,0.00019178,2]
[363724713,1748847038791,-420.0,0.00019178,2]
[363724714,1748847038801,-708.39,0.00019178,2]
[363724715,1748847038811,-140.85400989,0.00019178,2]
[363724716,1748847038861,-279.14599011,0.00019178,2]
[363724717,1748847038871,-623.73,0.00019178,2]
[363724718,1748847038880,-631.0,0.00019178,2]
[363724719,1748847038890,-420.0,0.00019178,2]
[363724720,1748847038899,-578.55,0.00019178,2]
[363724721,1748847038909,-420.0,0.00019178,2]
[363724722,1748847038918,-420.0,0.00019178,2]
[363724723,1748847038928,-52.25936681,0.00019178,2]
[363724724,1748847038943,-367.74063319,0.00019178,2]
[363724725,1748847038952,-325.00936668,0.00019178,2]
[363724726,1748847039048,-94.99063332,0.00019178,2]
[363724727,1748847039058,-420.0,0.00019178,2]
[363724728,1748847039068,-488.56410391,0.00019178,2]
[363724762,1748847039648,-435.33589609,0.00019178,2]
[363724765,1748847039659,-420.0,0.00019178,2]
[363724766,1748847039668,-420.0,0.00019178,2]
[363724768,1748847039678,-412.03970194,0.00019178,2]
[363724771,1748847039690,-254.25029806,0.00019178,2]
[363724773,1748847039699,-420.0,0.00019178,2]
[363724775,1748847039709,-420.0,0.00019178,2]
[363724777,1748847039718,-420.0,0.00019178,2]
[363724779,1748847039728,-722.24,0.00019178,2]
[363724781,1748847039738,-420.0,0.00019178,2]
[363724783,1748847039748,-2053.12603392,0.00019178,2]
[363724785,1748847039760,-713.95396608,0.00019178,2]
[363724787,1748847039770,-151.0,0.00019178,2]
[363724789,1748847039779,-151.0,0.00019303,2]
[363724791,1748847039788,-207.4,0.00019303,2]
[363724793,1748847039798,-420.0,0.00019315,2]
[363724795,1748847039808,-999.99,0.00019315,2]
[363724797,1748847039817,-150.99,0.00019315,2]
[363724799,1748847039827,-5467.60165931,0.00019315,2]
[363724808,1748847039905,-1004.00834069,0.00019315,2]
[363724810,1748847039915,-9718.33,0.00019315,2]
[363724812,1748847039924,-299.99,0.00019315,4]
[363724814,1748847039934,-420.0,0.00019315,2]
[363724816,1748847039943,-455.53,0.00019315,2]
[363724818,1748847039952,-470.9,0.00019315,2]
[363724819,1748847039961,-420.0,0.00019315,2]
[363724821,1748847039971,-420.0,0.00019315,2]
[363724823,1748847039980,-420.0,0.00019315,2]
[363724825,1748847039990,-489.36,0.00019315,2]
[363724828,1748847039999,-420.0,0.00019315,2]
[363724829,1748847040009,-1081.97,0.00019315,2]
[363724831,1748847040019,-574.94,0.00019315,2]
[363724833,1748847040028,-554.53,0.00019315,2]
[363724836,1748847040038,-1749.22,0.00019315,2]
[363724838,1748847040048,-420.0,0.00019315,2]
[363724840,1748847040058,-420.0,0.00019315,2]
[363724842,1748847040067,-420.29,0.00019315,2]
[363724843,1748847040077,-420.0,0.00019315,2]
[363724845,1748847040087,-437.07705642,0.00019315,2]
[363724848,1748847040096,-420.0,0.00019315,2]
[363724849,1748847040106,-420.0,0.00019315,2]
[363724851,1748847040116,-420.0,0.00019315,2]
[363724853,1748847040126,-420.0,0.00019315,2]
[363724856,1748847040136,-3251.57,0.00019315,2]
[363724858,1748847040145,-420.0,0.00019315,2]
[363724859,1748847040154,-420.0,0.00019315,2]
[363724861,1748847040163,-1456.62,0.00019315,2]
[363724863,1748847040173,-193.1,0.00019315,2]
[363724865,1748847040182,-420.0,0.00019315,2]
[363724867,1748847040192,-420.0,0.00019315,2]
[363724869,1748847040202,-420.0,0.00019315,2]
[363724872,1748847040212,-420.0,0.00019315,2]
[363724873,1748847040221,-199.68822237,0.00019315,2]
[363724876,1748847040234,-508.70177763,0.00019315,2]
[363724878,1748847040243,-420.0,0.00019315,2]
[363724880,1748847040253,-623.73,0.00019315,2]
[363724882,1748847040262,-631.0,0.00019315,2]
[363724884,1748847040271,-420.0,0.00019315,2]
[363724886,1748847040280,-578.55,0.00019315,2]
[363724888,1748847040290,-452.06569494,0.00019315,2]
[363724890,1748847040299,-420.0,0.00019315,2]
[363724892,1748847040309,-420.0,0.00019315,2]
[363724894,1748847040318,-420.0,0.00019315,2]
[363724896,1748847040328,-420.0,0.00019315,2]
[363724898,1748847040337,-923.9,0.00019315,2]
[363724899,1748847040347,-420.0,0.00019315,2]
[363724901,1748847040356,-420.0,0.00019315,2]
[363724903,1748847040365,-666.29,0.00019315,2]
[363724905,1748847040375,-420.0,0.00019315,2]
[363724907,1748847040384,-420.0,0.00019315,2]
[363724909,1748847040394,-420.0,0.00019315,2]
[363724911,1748847040404,-722.24,0.00019315,2]
[363724913,1748847040413,-420.0,0.00019315,2]
[363724915,1748847040423,-2767.08,0.00019315,2]
[363724917,1748847040432,-1842.63078545,0.00019354,2]
[363724919,1748847040442,-420.0,0.00019452,2]
[363724921,1748847040451,-455.53,0.00019452,2]
[363724923,1748847040465,-470.9,0.00019452,2]
[363724925,1748847040474,-420.0,0.00019452,2]
[363724927,1748847040483,-420.0,0.00019452,2]
[363724929,1748847040492,-420.0,0.00019452,2]
[363724931,1748847040502,-489.36,0.00019452,2]
[363724933,1748847040511,-420.0,0.00019452,2]
[363724935,1748847040525,-1081.97,0.00019452,2]
[363724937,1748847040534,-574.94,0.00019452,2]
[363724939,1748847040544,-554.53,0.00019452,2]
[363724941,1748847040553,-1749.22,0.00019452,2]
[363724943,1748847040562,-420.0,0.00019452,2]
[363724945,1748847040571,-420.0,0.00019452,2]
[363724947,1748847040580,-420.29,0.00019452,2]
[363724949,1748847040590,-420.0,0.00019452,2]
[363724951,1748847040599,-254.26,0.00019452,2]
[363724953,1748847040612,-420.0,0.00019452,2]
[363724955,1748847040621,-420.0,0.00019452,2]
[363724957,1748847040630,-420.0,0.00019452,2]
[363724959,1748847040639,-3251.57,0.00019452,2]
[363724961,1748847040649,-420.0,0.00019452,2]
[363724963,1748847040658,-420.0,0.00019452,2]
[363724965,1748847040667,-1456.62,0.00019452,2]
[363724967,1748847040677,-420.0,0.00019452,2]
[363724969,1748847040686,-420.0,0.00019452,2]
[363724971,1748847040695,-420.0,0.00019452,2]
[363724973,1748847040704,-420.0,0.00019452,2]
[363724975,1748847040715,-708.39,0.00019452,2]
[363724977,1748847040724,-420.0,0.00019452,2]
[363724979,1748847040734,-623.73,0.00019452,2]
[363724981,1748847040743,-631.0,0.00019452,2]
[363724983,1748847040752,-420.0,0.00019452,2]
[363724985,1748847040761,-578.55,0.00019452,2]
[363724987,1748847040771,-420.0,0.00019452,2]
[363724989,1748847040782,-420.0,0.00019452,2]
[363724991,1748847040791,-420.0,0.00019452,2]
[363724993,1748847040800,-420.0,0.00019452,2]
[363724995,1748847040809,-923.9,0.00019452,2]
[363724997,1748847040820,-268.14093909,0.00019452,2]
[363724999,1748847040829,-420.0,0.00019452,2]
[363725001,1748847040839,-666.29,0.00019452,2]
[363725003,1748847040848,-420.0,0.00019452,2]
[363725005,1748847040857,-420.0,0.00019452,2]
[363725007,1748847040866,-420.0,0.00019452,2]
[363725009,1748847040875,-722.24,0.00019452,2]
[363725011,1748847040884,-420.0,0.00019452,2]
[363725013,1748847040894,-269.8125774,0.000195,2]
[363725015,1748847040903,-150.0,0.000195,2]
[363725017,1748847040913,-1178.32,0.000195,2]
[363725019,1748847040923,-364.59,0.000195,2]
[363725021,1748847040932,-300.0,0.00019509,2]
[363725023,1748847040942,-200.0,0.0001951,2]
[363725025,1748847040951,-284.04254289,0.00019589,2]
[363725032,1748847041006,-2767.08,0.00019452,2]
[363725034,1748847041016,-135.95745711,0.00019589,2]
[363725036,1748847041025,-455.53,0.00019589,2]
[363725038,1748847041034,-470.9,0.00019589,2]
[363725040,1748847041043,-420.0,0.00019589,2]
[363725042,1748847041053,-420.0,0.00019589,2]
[363725044,1748847041064,-420.0,0.00019589,2]
[363725046,1748847041074,-489.36,0.00019589,2]
[363725048,1748847041083,-420.0,0.00019589,2]
[363725050,1748847041092,-1081.97,0.00019589,2]
[363725052,1748847041101,-574.94,0.00019589,2]
[363725054,1748847041110,-554.53,0.00019589,2]
[363725056,1748847041119,-1749.22,0.00019589,2]
[363725058,1748847041129,-420.0,0.00019589,2]
[363725060,1748847041138,-420.0,0.00019589,2]
[363725062,1748847041147,-420.29,0.00019589,2]
[363725064,1748847041156,-420.0,0.00019589,2]
[363725065,1748847041165,-420.0,0.00019589,2]
[363725067,1748847041174,-420.0,0.00019589,2]
[363725069,1748847041184,-420.0,0.00019589,2]
[363725071,1748847041193,-29.0450035,0.00019589,2]
[363725074,1748847041204,-871.70748148,0.00019589,2]
[363725076,1748847041216,-527.9989422,0.00019589,2]
[363725078,1748847041227,-1822.81857282,0.00019589,2]
[363725080,1748847041237,-7.18144718,0.00019589,2]
[363725224,1748847046950,-420.0,0.00019178,2]
[363725226,1748847046961,-420.0,0.00019178,2]
[363725227,1748847046970,-420.0,0.00019315,2]
[363725228,1748847046978,-224.73048015,0.00019315,2]
[363725229,1748847046990,-195.26951985,0.00019315,2]
[363725230,1748847046999,-420.0,0.00019452,2]
[363725231,1748847047009,-420.0,0.00019452,2]
[363725232,1748847047019,-412.81855282,0.00019589,2]
[363725233,1748847047028,-420.0,0.00019589,2]
[363725234,1748847047037,-1456.62,0.00019589,2]
[363725235,1748847047047,-420.0,0.00019589,2]
[363725236,1748847047056,-420.0,0.00019589,2]
[363725237,1748847047066,-420.0,0.00019589,2]
[363725238,1748847047075,-49.55512463,0.00019589,2]
[363725239,1748847047087,-370.44487537,0.00019589,2]
[363725240,1748847047098,-708.39,0.00019589,2]
[363725241,1748847047108,-420.0,0.00019589,2]
[363725242,1748847047118,-623.73,0.00019589,2]
[363725243,1748847047128,-631.0,0.00019589,2]
[363725244,1748847047138,-420.0,0.00019589,2]
[363725245,1748847047148,-578.55,0.00019589,2]
[363725246,1748847047158,-353.64,0.00019589,2]
[363725247,1748847047168,-420.0,0.00019589,2]
[363725248,1748847047178,-420.0,0.00019589,2]
[363725249,1748847047188,-420.0,0.00019589,2]
[363725250,1748847047199,-10.69098063,0.00019589,2]
[363725251,1748847047245,-913.20901937,0.00019589,2]
[363725252,1748847047257,-420.0,0.00019589,2]
[363725253,1748847047267,-666.29,0.00019589,2]
[363725254,1748847047276,-420.0,0.00019589,2]
[363725255,1748847047286,-420.0,0.00019589,2]
[363725256,1748847047297,-420.0,0.00019589,2]
[363725257,1748847047306,-722.24,0.00019589,2]
[363725258,1748847047316,-420.0,0.00019589,2]
[363725259,1748847047325,-2767.08,0.00019589,2]
[363725260,1748847047335,-420.0,0.00019589,2]
[363725261,1748847047344,-420.0,0.00019589,2]
[363725262,1748847047354,-1273.218633,0.00019599,2]
[363725263,1748847047363,-151.57046137,0.00019599,2]
[363725264,1748847047373,-150.0,0.000196,2]
[363725268,1748847047573,-151.5704613,0.00019652,2]
[363725269,1748847047584,-506.0,0.00019699,2]
[363725270,1748847047594,-939.57891321,0.000197,2]
[363725271,1748847047607,-60.42108679,0.000197,2]
[363725272,1748847047617,-371.94673398,0.00019702,2]
[363725273,1748847047626,-151.5704613,0.00019705,2]
[363725274,1748847047635,-420.0,0.00019726,2]
[363725275,1748847047644,-470.9,0.00019726,2]
[363725276,1748847047654,-420.0,0.00019726,2]
[363725277,1748847047663,-420.0,0.00019726,2]
[363725278,1748847047673,-420.0,0.00019726,2]
[363725279,1748847047683,-489.36,0.00019726,2]
[363725280,1748847047692,-420.0,0.00019726,2]
[363725281,1748847047701,-1081.97,0.00019726,2]
[363725282,1748847047710,-574.94,0.00019726,2]
[363725283,1748847047724,-212.99332233,0.00019726,2]
[363725284,1748847047736,-341.53667767,0.00019726,2]
[363725285,1748847047745,-1749.22,0.00019726,2]
[363725286,1748847047755,-420.0,0.00019726,2]
[363725287,1748847047764,-420.0,0.00019726,2]
[363725288,1748847047773,-420.29,0.00019726,2]
[363725289,1748847047782,-420.0,0.00019726,2]
[363725290,1748847047792,-420.0,0.00019726,2]
[363725291,1748847047802,-420.0,0.00019726,2]
[363725292,1748847047812,-420.0,0.00019726,2]
[363725293,1748847047822,-3251.57,0.00019726,2]
[363725294,1748847047833,-562.81,0.00019726,2]
[363725295,1748847047844,-343.67190358,0.00019726,2]
[363725296,1748847047853,-1456.62,0.00019726,2]
[363725297,1748847047863,-420.0,0.00019726,2]
[363725298,1748847047872,-420.0,0.00019726,2]
[363725299,1748847047881,-420.0,0.00019726,2]
[363725300,1748847047891,-420.0,0.00019726,2]
[363725301,1748847047902,-708.39,0.00019726,2]
[363725302,1748847047912,-420.0,0.00019726,2]
[363725303,1748847047921,-623.73,0.00019726,2]
[363725304,1748847047933,-631.0,0.00019726,2]
[363725305,1748847047944,-420.0,0.00019726,2]
[363725306,1748847047954,-578.55,0.00019726,2]
[363725307,1748847047965,-420.0,0.00019726,2]
[363725308,1748847047975,-85.02776824,0.00019726,2]
[363725309,1748847047986,-334.97223176,0.00019726,2]
[363725310,1748847047996,-420.0,0.00019726,2]
[363725311,1748847048007,-923.9,0.00019726,2]
[363725312,1748847048017,-420.0,0.00019726,2]
[363725313,1748847048027,-666.29,0.00019726,2]
[363725314,1748847048037,-420.0,0.00019726,2]
[363725315,1748847048047,-420.0,0.00019726,2]
[363725316,1748847048056,-420.0,0.00019726,2]
[363725317,1748847048066,-722.24,0.00019726,2]
[363725318,1748847048075,-420.0,0.00019726,2]
[363725319,1748847048084,-2767.08,0.00019726,2]
[363725320,1748847048093,-420.0,0.00019726,2]
[363725321,1748847048103,-420.0,0.00019726,2]
[363725322,1748847048112,-173.348,0.00019726,2]
[363725323,1748847048122,-151.5704613,0.00019759,2]
[363725324,1748847048132,-1000.0,0.000198,2]
[363725325,1748847048141,-151.5704613,0.00019812,2]
[363725326,1748847048152,-200.0,0.0001984,2]
[363725327,1748847048162,-420.0,0.00019863,2]
[363725328,1748847048172,-470.9,0.00019863,2]
[363725329,1748847048182,-420.0,0.00019863,2]
[363725330,1748847048193,-420.0,0.00019863,2]
[363725331,1748847048203,-420.0,0.00019863,2]
[363725332,1748847048214,-489.36,0.00019863,2]
[363725333,1748847048224,-420.0,0.00019863,2]
[363725334,1748847048234,-1081.97,0.00019863,2]
[363725335,1748847048245,-574.94,0.00019863,2]
[363725336,1748847048254,-554.53,0.00019863,2]
[363725337,1748847048264,-1749.22,0.00019863,2]
[363725338,1748847048274,-264.96087293,0.00019863,2]
[363725339,1748847048283,-420.0,0.00019863,2]
[363725340,1748847048293,-420.29,0.00019863,2]
[363725341,1748847048303,-420.0,0.00019863,2]
[363725342,1748847048312,-420.0,0.00019863,2]
[363725343,1748847048321,-420.0,0.00019863,2]
[363725344,1748847048330,-538.20977338,0.00019863,2]
[363725345,1748847048339,-2329.71971326,0.00019863,2]
[363725346,1748847048351,-921.85028674,0.00019863,2]
[363725347,1748847048360,-1456.62,0.00019863,2]
[363725348,1748847048370,-420.0,0.00019863,2]
[363725349,1748847048379,-420.0,0.00019863,2]
[363725350,1748847048388,-420.0,0.00019863,2]
[363725351,1748847048398,-420.0,0.00019863,2]
[363725352,1748847048407,-708.39,0.00019863,2]
[363725353,1748847048416,-420.0,0.00019863,2]
[363725354,1748847048426,-623.73,0.00019863,2]
[363725355,1748847048435,-631.0,0.00019863,2]
[363725356,1748847048445,-420.0,0.00019863,2]
[363725357,1748847048454,-578.55,0.00019863,2]
[363725358,1748847048463,-420.0,0.00019863,2]
[363725359,1748847048476,-420.0,0.00019863,2]
[363725360,1748847048485,-420.0,0.00019863,2]
[363725361,1748847048495,-923.9,0.00019863,2]
[363725362,1748847048504,-270.12747057,0.00019863,2]
[363725363,1748847048512,-666.29,0.00019863,2]
[363725364,1748847048523,-420.0,0.00019863,2]
[363725365,1748847048532,-420.0,0.00019863,2]